bitfinex/quotes_SOLUSD_20251009
["timestamp","ask_amount","ask_price","bid_price","bid_amount"]
[1760033523069,0.9,218.9,218.89,10.87647521]
[1760033525405,5.46829602,218.9,218.86,10.87647521]
[1760033525610,0.7,218.89,218.86,10.87647521]
[1760033526096,0.7,218.88,218.86,80.3]
[1760033526305,0.7,218.87,218.83,91.17647521]
[1760033526608,0.7,218.86,218.83,91.17647521]
[1760033526895,0.7,218.85,218.83,91.17647521]
[1760033527977,4.56894969,218.87,218.83,91.17647521]
[1760033527978,0.7,218.84,218.83,91.17647521]
[1760033528472,0.7,218.87,218.83,91.17647521]
[1760033528676,0.7,218.86,218.83,95.74619196]
[1760033528904,0.7,218.86,218.83,91.17647521]
[1760033529079,0.7,218.86,218.83,95.74617069]
[1760033530983,0.9,218.9,218.83,95.74617069]
[1760033531178,0.2,218.9,218.87,10.87647521]
[1760033532912,0.2,218.9,218.89,10.87647521]
[1760033533097,0.2,218.9,218.89,91.17647521]
[1760033534505,0.9,218.9,218.89,91.17647521]
[1760033535394,0.9,218.9,218.89,80.3]
[1760033538007,5.46829602,218.9,218.89,80.3]
[1760033539686,5.46829602,218.9,218.83,101.1]
[1760033539912,0.7,218.89,218.79,13.71397225]
[1760033540119,0.7,218.88,218.78,4.57078844]
[1760033540296,0.7,218.87,218.75,84.87138854]
[1760033540500,0.7,218.86,218.76,10.87647521]
[1760033540810,0.7,218.85,218.76,10.87647521]
[1760033541112,0.7,218.84,218.72,11.52971545]
[1760033541411,0.7,218.83,218.75,20.8]
[1760033541614,4.57017503,218.81,218.76,10.87647521]
[1760033541801,0.7,218.8,218.7,13.49330956]
[1760033541986,0.7,218.79,218.71,10.87647521]
[1760033542182,0.7,218.79,218.69,91.83145891]
[1760033542183,0.7,218.78,218.74,20.8]
[1760033542491,0.7,218.77,218.74,20.8]
[1760033542808,0.7,218.76,218.74,20.8]
[1760033543205,0.7,218.76,218.74,10.87647521]
[1760033543407,4.57072565,218.79,218.74,10.87647521]
[1760033543810,0.7,218.78,218.74,10.87647521]
[1760033544011,0.7,218.77,218.74,10.87647521]
[1760033544314,0.7,218.76,218.74,10.87647521]
[1760033545109,0.7,218.75,218.71,4.57207456]
[1760033545309,0.7,218.74,218.71,10.87647521]
[1760033545607,0.7,218.74,218.67,0.1]
[1760033545608,0.7,218.74,218.69,10.87647521]
[1760033545926,0.7,218.77,218.69,15.44915705]
[1760033546104,0.7,218.8,218.73,10.87647521]
[1760033546289,4.56954852,218.84,218.73,222.07647521]
[1760033546488,0.7,218.79,218.7,10.87647521]
[1760033546688,0.7,218.78,218.7,10.87647521]
[1760033546901,0.7,218.77,218.7,10.87647521]
[1760033547106,0.7,218.76,218.7,10.87647521]
[1760033547308,0.7,218.75,218.7,10.87647521]
[1760033547508,0.7,218.74,218.7,91.17647521]
[1760033547716,0.7,218.73,218.7,91.17647521]
[1760033547927,0.7,218.72,218.7,91.17647521]
[1760033548294,15.99707481,218.79,218.68,10.87647521]
[1760033548295,0.7,218.71,218.68,10.87647521]
[1760033548597,0.7,218.7,218.68,10.87647521]
[1760033549920,4.57214779,218.72,218.68,10.87647521]
[1760033550218,4.57163756,218.74,218.68,10.87647521]
[1760033550394,11.428588,218.75,218.68,15.44931361]
[1760033550395,5.27143284,218.75,218.68,15.44931361]
[1760033550595,4.57101065,218.77,218.68,95.84931361]
[1760033551108,5.27101065,218.77,218.68,95.84931361]
[1760033551789,5.27101065,218.77,218.69,4.67248304]
[1760033552013,5.27101065,218.77,218.7,10.87647521]
[1760033552211,0.7,218.76,218.7,10.87647521]
[1760033553318,5.27134002,218.76,218.7,10.87647521]
[1760033555910,5.27134002,218.76,218.7,222.07647521]
[1760033557004,0.7,218.76,218.7,226.64891476]
[1760033557212,0.67,218.83,218.74,10.87647521]
[1760033557515,0.67,218.82,218.74,222.17647521]
[1760033558520,5.24017503,218.81,218.74,222.07647521]
[1760033558727,0.67,218.8,218.74,222.07647521]
[1760033558934,0.67,218.79,218.74,222.07647521]
[1760033559920,0.67,218.82,218.74,226.648107]
[1760033560122,0.67,218.86,218.78,10.87647521]
[1760033560314,0.2,218.9,218.78,10.87647521]
[1760033560315,15.98976654,218.89,218.78,10.87647521]
[1760033560518,0.67,218.85,218.78,91.17647521]
[1760033560715,0.67,218.84,218.78,91.17647521]
[1760033560914,0.67,218.83,218.78,91.17647521]
[1760033561309,11.42178362,218.88,218.78,91.17647521]
[1760033561514,0.67,218.82,218.78,91.17647521]
[1760033561727,11.42178362,218.88,218.77,25.37091978]
[1760033561728,0.67,218.81,218.77,80.3]
[1760033562030,0.67,218.81,218.72,0.1]
[1760033562031,0.17,218.8,218.73,10.87647521]
[1760033562216,20.8,218.85,218.75,10.87647521]
[1760033562530,15.99341984,218.84,218.75,10.87647521]
[1760033564115,0.67,218.83,218.75,10.87647521]
[1760033564308,0.67,218.82,218.75,10.87647521]
[1760033564509,4.57017503,218.81,218.75,10.87647521]
[1760033564910,5.25017503,218.81,218.75,10.87647521]
[1760033565438,0.68,218.87,218.77,10.87647521]
[1760033565732,0.68,218.87,218.78,0.6]
[1760033565931,4.56871345,218.88,218.79,10.87647521]
[1760033566125,4.56850517,218.89,218.81,10.87647521]
[1760033566327,4.56850517,218.89,218.83,10.87647521]
[1760033566626,0.2,218.9,218.85,10.87647521]
[1760033566816,0.2,218.9,218.85,11.47647521]
[1760033567010,0.2,218.9,218.85,10.87647521]
[1760033567231,0.2,218.9,218.87,10.87647521]
[1760033567719,0.2,218.9,218.87,0.6]
[1760033569233,0.2,218.9,218.86,4.56909942]
[1760033569408,0.2,218.9,218.86,5.16909942]
[1760033569727,0.88,218.9,218.84,4.56947823]
[1760033570029,0.88,218.9,218.85,10.87647521]
[1760033570334,4.76833768,218.9,218.85,11.47647521]
[1760033570946,0.2,218.9,218.86,0.6]
[1760033571106,0.2,218.9,218.85,15.44573415]
[1760033571415,0.2,218.9,218.87,0.6]
[1760033573036,0.2,218.9,218.85,16.04573415]
[1760033573837,4.76831965,218.9,218.85,16.04573415]
[1760033574044,4.76831965,218.9,218.86,0.6]
[1760033574233,4.76831965,218.9,218.85,15.44573415]
[1760033574427,4.76831965,218.9,218.85,16.04573415]
[1760033574629,5.44831965,218.9,218.85,16.04573415]
[1760033575028,5.44831965,218.9,218.85,11.47647521]
[1760033575336,4.76831965,218.9,218.86,0.6]
[1760033575539,0.2,218.9,218.86,0.6]
[1760033575937,0.2,218.9,218.87,0.6]
[1760033576145,0.2,218.9,218.89,10.87647521]
[1760033576353,0.2,218.9,218.87,0.6]
[1760033576719,0.2,218.9,218.88,10.87647521]
[1760033577239,0.2,218.9,218.88,11.47647521]
[1760033577423,0.2,218.9,218.89,0.6]
[1760033577628,0.2,218.9,218.89,91.77647521]
[1760033578745,0.2,218.9,218.89,91.17647521]
[1760033579042,0.2,218.9,218.89,10.87647521]
[1760033579341,0.88,218.9,218.84,10.87647521]
[1760033579847,0.2,218.9,218.84,10.87647521]
[1760033580039,0.68,218.89,218.84,10.87647521]
[1760033580241,0.68,218.88,218.84,10.87647521]
[1760033580447,0.2,218.9,218.86,10.87647521]
[1760033580745,0.2,218.9,218.88,10.87647521]
[1760033580926,0.2,218.9,218.88,11.47647521]
[1760033581439,0.2,218.9,218.88,16.04508082]
[1760033582044,0.2,218.9,218.88,15.44508082]
[1760033583041,0.2,218.9,218.88,10.87647521]
[1760033583647,0.2,218.9,218.88,15.44515351]
[1760033584745,0.2,218.9,218.88,10.87647521]
[1760033585527,0.2,218.9,218.88,91.17647521]
[1760033586534,0.71,218.89,218.88,91.17647521]
[1760033586735,0.2,218.9,218.88,91.17647521]
[1760033587555,0.91,218.9,218.88,91.17647521]
[1760033587757,0.71,218.89,218.88,91.17647521]
[1760033587936,0.71,218.89,218.87,80.3]
[1760033588139,4.76831809,218.9,218.87,80.3]
[1760033588343,0.71,218.89,218.87,80.3]
[1760033588845,0.2,218.9,218.88,10.87647521]
[1760033591156,0.91,218.9,218.88,10.87647521]
[1760033591662,0.91,218.9,218.88,91.17647521]
[1760033592441,0.2,218.9,218.88,91.17647521]
[1760033592976,0.91,218.9,218.88,91.17647521]
[1760033593751,0.71,218.89,218.86,80.3]
[1760033593941,0.71,218.88,218.86,80.3]
[1760033594164,0.71,218.87,218.86,80.3]
[1760033594576,5.27892219,218.87,218.86,80.3]
[1760033594775,0.2,218.9,218.87,10.87647521]
[1760033596478,0.2,218.9,218.89,36.24497993]
[1760033596986,0.2,218.98,218.89,36.24497993]
[1760033596987,0.2,218.98,218.94,10.87647521]
[1760033597348,0.2,218.98,218.96,10.87647521]
[1760033597769,0.2,218.98,218.97,31.67647521]
[1760033598002,0.2,218.98,218.97,32.07647521]
[1760033598457,0.2,218.98,218.97,31.67647521]
[1760033598671,0.2,218.98,218.97,36.24331084]
[1760033600770,0.2,218.98,218.97,36.64331084]
[1760033603669,0.2,218.98,218.97,36.24331084]
[1760033603856,0.2,218.98,218.97,31.67647521]
[1760033604057,0.2,218.98,218.97,36.24331084]
[1760033605571,0.2,218.98,218.97,36.64331084]
[1760033605778,0.2,218.98,218.97,36.24331084]
[1760033606576,0.2,218.98,218.97,31.67647521]
[1760033606777,0.2,218.98,218.97,36.24331084]
[1760033607372,0.2,218.98,218.97,31.67647521]
[1760033607990,0.2,218.98,218.97,36.24331084]
[1760033609317,0.2,218.98,218.97,36.64331084]
[1760033609897,0.2,218.98,218.97,36.24331084]
[1760033610475,0.2,218.98,218.97,36.64331084]
[1760033610675,0.2,218.98,218.97,36.24331084]
[1760033612395,0.2,218.98,218.97,116.54331084]
[1760033612697,0.2,218.98,218.97,116.94331084]
[1760033613298,0.2,218.98,218.97,116.54331084]
[1760033614490,0.2,218.98,218.97,247.44331084]
[1760033614789,0.2,218.99,218.98,10.87647521]
[1760033614986,0.2,218.99,218.98,11.27647521]
[1760033616088,0.2,218.99,218.98,222.07647521]
[1760033616274,0.2,218.99,218.98,226.64310229]
[1760033617095,0.91,218.99,218.98,95.74310229]
[1760033618184,0.91,218.99,218.98,91.17647521]
[1760033618787,0.91,218.99,218.98,95.74310229]
[1760033620385,0.2,218.99,218.98,95.74310229]
[1760033627201,0.2,219.02,219.01,10.87647521]
[1760033627394,0.2,219.02,219.01,90.77647521]
[1760033627805,0.87,219.02,219.01,90.77647521]
[1760033628292,5.43579307,219.02,218.97,20.8]
[1760033628488,0.67,219.01,218.98,10.87647521]
[1760033628690,0.67,219.01,218.96,10.87647521]
[1760033628893,0.67,219.0,218.96,10.87647521]
[1760033629091,0.2,219.02,218.96,10.87647521]
[1760033629298,0.67,219.01,218.98,31.67647521]
[1760033629604,0.2,219.02,218.98,31.67647521]
[1760033629605,0.67,219.0,218.98,31.67647521]
[1760033630405,0.67,219.0,218.98,36.24291293]
[1760033631207,0.67,218.99,218.98,36.24291293]
[1760033631411,0.2,219.02,218.98,36.24291293]
[1760033631590,0.67,219.01,218.98,31.67647521]
[1760033631791,0.67,219.0,218.98,31.67647521]
[1760033632001,0.67,218.99,218.98,31.67647521]
[1760033632907,0.67,218.99,218.95,20.8]
[1760033633113,0.67,218.98,218.9,4.56829602]
[1760033633300,0.67,218.97,218.91,10.87647521]
[1760033633488,0.67,218.96,218.91,31.67647521]
[1760033633805,0.67,218.95,218.9,10.87647521]
[1760033634201,0.67,218.94,218.9,10.87647521]
[1760033634399,15.98100543,219.01,218.9,10.87647521]
[1760033634400,0.67,218.93,218.9,10.87647521]
[1760033634807,0.67,218.92,218.9,10.87647521]
[1760033635007,0.67,218.91,218.9,10.87647521]
[1760033635208,0.67,218.91,218.89,10.87647521]
[1760033635409,0.67,218.9,218.83,10.87647521]
[1760033635605,0.67,218.89,218.83,15.44613939]
[1760033635811,0.67,218.88,218.82,10.87647521]
[1760033636012,0.67,218.88,218.82,31.67647521]
[1760033636212,0.67,218.87,218.82,31.67647521]
[1760033636396,15.98757536,218.92,218.82,10.87647521]
[1760033636397,0.67,218.86,218.82,10.87647521]
[1760033636600,0.67,218.85,218.82,10.87647521]
[1760033636801,0.67,218.84,218.82,10.87647521]
[1760033637001,0.67,218.83,218.82,10.87647521]
[1760033637214,0.67,218.83,218.82,31.67647521]
[1760033638330,0.67,218.83,218.82,36.24644139]
[1760033639794,0.67,218.83,218.82,31.67647521]
[1760033639993,0.67,218.83,218.81,10.87647521]
[1760033640209,0.67,218.82,218.81,10.87647521]
[1760033640732,0.67,218.82,218.8,10.87647521]
[1760033640894,4.56929962,218.86,218.8,10.87647521]
[1760033641090,0.67,218.85,218.8,79.9]
[1760033641329,20.8,218.9,218.76,0.1]
[1760033641330,0.67,218.84,218.76,0.1]
[1760033641494,0.67,218.84,218.76,84.57119006]
[1760033641696,0.67,218.83,218.76,0.1]
[1760033641908,0.67,218.83,218.76,10.97647521]
[1760033642104,0.67,218.82,218.76,10.97647521]
[1760033642305,0.67,218.81,218.76,10.97647521]
[1760033642622,0.67,218.8,218.76,15.54768205]
[1760033642821,0.68,218.79,218.76,15.54768205]
[1760033643116,3.05922611,218.88,218.76,10.97647521]
[1760033643322,0.68,218.78,218.76,10.97647521]
[1760033643520,0.68,218.78,218.76,15.54767092]
[1760033644218,0.68,218.8,218.76,15.54767092]
[1760033644396,0.68,218.79,218.76,15.54767092]
[1760033645207,0.68,218.78,218.76,0.1]
[1760033646319,0.68,218.77,218.76,0.1]
[1760033647402,5.25101065,218.77,218.76,0.1]
[1760033647804,0.68,218.77,218.76,0.1]
[1760033650643,11.42570531,218.81,218.76,0.1]
[1760033650644,0.68,218.81,218.76,0.1]
[1760033650927,0.68,218.8,218.77,10.87647521]
[1760033651131,4.56954852,218.84,218.77,10.87647521]
[1760033651309,0.68,218.8,218.77,10.87647521]
[1760033651630,0.68,218.79,218.77,10.87647521]
[1760033652010,0.68,218.78,218.76,80.0]
[1760033652214,0.68,218.77,218.76,80.0]
[1760033654353,5.25050937,218.8,218.76,80.0]
[1760033654556,0.68,218.79,218.76,80.0]
[1760033654756,0.68,218.78,218.76,80.0]
[1760033654942,0.68,218.77,218.76,80.0]
[1760033656037,5.25101065,218.77,218.76,80.0]
[1760033656239,5.25101065,218.77,218.76,0.1]
[1760033659062,0.68,218.77,218.76,0.1]
[1760033659278,0.68,218.84,218.76,0.5]
[1760033659433,0.68,218.84,218.77,10.87647521]
[1760033659638,11.42126182,218.89,218.77,91.17647521]
[1760033659838,5.24871345,218.88,218.78,4.57080171]
[1760033660059,0.68,218.87,218.78,4.97080171]
[1760033660857,0.68,218.86,218.78,4.97080171]
[1760033662257,4.56933973,218.85,218.78,4.97080171]
[1760033663165,4.06933973,218.85,218.78,4.97080171]
[1760033664565,0.68,218.85,218.78,4.97080171]
[1760033664772,4.56895074,218.87,218.8,10.87647521]
[1760033665141,4.56895074,218.87,218.8,11.27647521]
[1760033665338,0.68,218.88,218.81,0.4]
[1760033666365,4.56892219,218.87,218.81,4.97012335]
[1760033666670,0.68,218.86,218.8,10.87647521]
[1760033666971,0.68,218.86,218.8,15.44684948]
[1760033668168,5.24913906,218.86,218.8,15.44684948]
[1760033668870,5.24913906,218.86,218.8,95.34684948]
[1760033669458,0.68,218.86,218.8,95.34684948]
[1760033669769,0.68,218.86,218.8,95.74684948]
[1760033669958,0.68,218.88,218.8,95.74684948]
[1760033670147,4.56787867,218.92,218.82,10.87647521]
[1760033670347,0.68,218.9,218.82,222.07647521]
[1760033672073,5.24834972,218.9,218.84,10.87647521]
[1760033672260,5.24834972,218.9,218.84,221.67647521]
[1760033673171,5.24834972,218.9,218.84,226.24587508]
[1760033674181,11.41929053,218.93,218.84,226.24587508]
[1760033674485,0.68,218.89,218.84,226.24587508]
[1760033674657,0.68,218.88,218.84,226.24587508]
[1760033674857,11.41929053,218.93,218.84,226.24587508]
[1760033675160,0.68,218.91,218.84,226.64587508]
[1760033675371,4.56829602,218.9,218.84,226.64587508]
[1760033676468,4.56807053,218.92,218.85,0.4]
[1760033676667,5.2476969,218.93,218.86,10.87647521]
[1760033676970,5.2476969,218.93,218.86,11.27647521]
[1760033677652,0.68,218.92,218.86,79.9]
[1760033677969,0.68,218.91,218.86,79.9]
[1760033678174,0.68,218.9,218.86,79.9]
[1760033678356,0.68,218.89,218.86,79.9]
[1760033678557,0.68,218.88,218.86,79.9]
[1760033678757,0.68,218.87,218.86,79.9]
[1760033679646,4.56871345,218.88,218.86,79.9]
[1760033679847,5.24871345,218.88,218.86,79.9]
[1760033680580,4.56871345,218.88,218.86,79.9]
[1760033680757,0.68,218.87,218.86,79.9]
[1760033681159,5.24892219,218.87,218.86,79.9]
[1760033685195,0.69,218.94,218.87,10.87647521]
[1760033685482,3.06700668,218.95,218.89,10.87647521]
[1760033685666,5.25705408,218.96,218.89,10.87647521]
[1760033686390,5.25705408,218.96,218.89,15.44497081]
[1760033686883,21.49,218.98,218.91,10.87647521]
[1760033687086,21.49,218.98,218.91,11.27647521]
[1760033687582,0.69,218.98,218.91,11.27647521]
[1760033688288,4.56683563,218.97,218.91,15.84452294]
[1760033689183,4.56683563,218.97,218.91,11.27647521]
[1760033689388,0.69,218.96,218.9,10.87647521]
[1760033689595,0.69,218.95,218.9,10.87647521]
[1760033689887,0.69,218.94,218.9,10.87647521]
[1760033690088,0.69,218.94,218.88,10.87647521]
[1760033690261,5.25753382,218.94,218.86,15.44560616]
[1760033690467,4.56753382,218.94,218.88,0.4]
[1760033691477,0.69,218.94,218.89,10.87647521]
[1760033691873,20.8,218.98,218.9,0.4]
[1760033692193,21.49,218.98,218.9,0.4]
[1760033692358,21.49,218.98,218.9,80.3]
[1760033692559,0.69,218.97,218.91,10.87647521]
[1760033693165,4.5670442,218.96,218.91,10.87647521]
[1760033693365,0.69,218.95,218.91,10.87647521]
[1760033694490,4.5670442,218.96,218.91,11.27647521]
[1760033695293,15.98173515,219.0,218.91,11.27647521]
[1760033695498,15.98173515,219.0,218.91,90.77647521]
[1760033695499,0.69,218.96,218.91,90.77647521]
[1760033696462,0.69,218.96,218.91,91.17647521]
[1760033697585,4.56722897,218.96,218.91,90.77647521]
[1760033697888,5.25722897,218.96,218.91,90.77647521]
[1760033698061,0.69,218.95,218.91,90.77647521]
[1760033698267,4.56722897,218.96,218.91,90.77647521]
[1760033698268,0.69,218.94,218.91,90.77647521]
[1760033698583,0.69,218.93,218.91,79.9]
[1760033698786,0.69,218.92,218.83,10.87647521]
[1760033698986,0.69,218.91,218.83,10.87647521]
[1760033699165,20.8,218.93,218.77,14.11522618]
[1760033699166,0.69,218.9,218.77,14.11522618]
[1760033699371,21.49,218.89,218.78,0.4]
[1760033699691,15.99049707,218.88,218.79,20.8]
[1760033699894,16.68049707,218.88,218.8,10.87647521]
[1760033700095,0.69,218.87,218.8,10.87647521]
[1760033700272,11.4206129,218.91,218.81,0.4]
[1760033700474,4.56829602,218.9,218.82,10.87647521]
[1760033700686,4.56757463,218.94,218.86,10.87647521]
[1760033700893,4.56757463,218.94,218.88,10.87647521]
[1760033701285,4.56757463,218.94,218.88,0.4]
[1760033701502,5.25727876,218.95,218.88,0.4]
[1760033701805,5.25727876,218.95,218.9,10.87647521]
[1760033702105,5.25727876,218.95,218.88,0.4]
[1760033702283,4.56727876,218.95,218.88,0.4]
[1760033702672,0.72,218.94,218.89,10.87647521]
[1760033703131,4.56727876,218.95,218.89,10.87647521]
[1760033703342,5.28727876,218.95,218.89,10.87647521]
[1760033704535,5.28727876,218.95,218.89,221.67647521]
[1760033705033,4.56703568,218.97,218.9,0.4]
[1760033705342,4.56703568,218.97,218.91,10.87647521]
[1760033705523,4.56703568,218.97,218.91,0.4]
[1760033705719,3.78666273,218.98,218.91,0.4]
[1760033705919,0.72,218.98,218.91,0.4]
[1760033706630,0.72,218.98,218.91,4.96790303]
[1760033706849,4.56621004,219.0,218.91,84.46790303]
[1760033707071,0.2,219.02,218.95,20.8]
[1760033707377,0.2,219.02,218.96,10.87647521]
[1760033707657,0.92,219.02,218.96,10.87647521]
[1760033708858,0.2,219.02,218.98,10.87647521]
[1760033709453,0.2,219.02,219.0,10.87647521]
[1760033709846,0.2,219.02,219.01,11.27647521]
[1760033711054,0.2,219.02,219.01,15.84247676]
[1760033713237,0.2,219.07,219.05,10.87647521]
[1760033713439,0.2,219.07,219.05,90.57647521]
[1760033713642,0.92,219.07,219.05,90.57647521]
[1760033714137,0.72,219.06,219.05,90.57647521]
[1760033714546,0.2,219.07,219.05,90.97647521]
[1760033714857,0.2,219.07,219.06,11.27647521]
[1760033715359,0.2,219.07,219.06,15.84143458]
[1760033715735,0.2,219.07,219.06,11.27647521]
[1760033715957,0.2,219.07,219.06,10.87647521]
[1760033721257,0.92,219.07,219.06,10.87647521]
[1760033721461,5.48475099,219.07,218.95,10.87647521]
[1760033721761,20.8,219.03,218.89,0.4]
[1760033722070,0.72,219.02,218.89,0.4]
[1760033722244,0.72,219.02,218.93,20.8]
[1760033722563,0.72,219.02,218.89,0.4]
[1760033722564,0.72,219.01,218.89,4.5684924]
[1760033722736,0.72,219.0,218.87,4.56875025]
[1760033722939,0.72,218.99,218.87,4.56875025]
[1760033723153,0.72,218.98,218.87,25.36875025]
[1760033723475,0.72,218.97,218.92,10.87647521]
[1760033723640,4.56725279,218.95,218.85,15.44581494]
[1760033723842,0.72,218.94,218.85,15.44581494]
[1760033724136,4.56725279,218.95,218.89,10.87647521]
[1760033724137,0.72,218.93,218.89,10.87647521]
[1760033724437,0.72,218.92,218.89,10.87647521]
[1760033724846,0.72,218.94,218.89,10.87647521]
[1760033725045,0.72,218.93,218.89,10.87647521]
[1760033726369,0.72,218.98,218.91,10.87647521]
[1760033726539,0.72,218.98,218.92,20.8]
[1760033726747,5.2866443,218.98,218.93,10.87647521]
[1760033726948,0.72,218.97,218.93,10.87647521]
[1760033727860,5.28690852,218.97,218.93,10.87647521]
[1760033728357,0.72,218.96,218.93,10.87647521]
[1760033728860,4.56621004,219.0,218.93,10.87647521]
[1760033729060,4.56621004,219.0,218.93,15.44410381]
[1760033729061,0.72,218.99,218.93,15.44410381]
[1760033729272,0.72,218.99,218.93,226.04410381]
[1760033729473,5.28561466,219.03,218.95,10.87647521]
[1760033729847,0.72,219.02,218.97,31.67647521]
[1760033730055,0.72,219.01,218.97,31.67647521]
[1760033730248,0.72,219.0,218.92,10.87647521]
[1760033730449,4.56561466,219.03,218.94,10.87647521]
[1760033730774,0.72,219.02,218.94,0.4]
[1760033731146,0.72,219.02,218.96,10.87647521]
[1760033731353,5.28592359,219.02,218.96,10.87647521]
[1760033731867,5.28592359,219.02,218.96,4.56701674]
[1760033732178,4.56592359,219.02,218.96,4.56701674]
[1760033733255,5.28543813,219.04,218.96,4.56701674]
[1760033733459,4.56528457,219.05,218.98,10.87647521]
[1760033733852,0.69,219.04,218.98,10.87647521]
[1760033734756,0.69,219.03,218.97,10.87647521]
[1760033735159,0.69,219.02,218.96,10.87647521]
[1760033735361,11.41291942,219.05,218.96,10.87647521]
[1760033735559,0.69,219.01,218.96,10.87647521]
[1760033735769,0.69,219.0,218.94,20.8]
[1760033735952,0.69,218.99,218.95,10.87647521]
[1760033736152,0.69,218.98,218.95,10.87647521]
[1760033736360,0.69,218.97,218.95,10.87647521]
[1760033737363,0.69,219.0,218.95,10.87647521]
[1760033737573,0.69,218.99,218.95,10.87647521]
[1760033737867,0.69,219.01,218.95,10.87647521]
[1760033738970,0.69,219.01,218.95,15.44362691]
[1760033739148,15.97808718,219.05,218.99,10.87647521]
[1760033739354,0.69,219.04,218.99,10.87647521]
[1760033739555,5.25569961,219.03,218.99,10.87647521]
[1760033739754,0.69,219.02,218.95,4.5671517]
[1760033740160,0.69,219.01,218.95,10.87647521]
[1760033740368,0.69,219.01,218.93,10.87647521]
[1760033740678,5.25569961,219.03,218.95,10.87647521]
[1760033741077,0.69,219.02,218.93,11.27647521]
[1760033741258,0.69,219.01,218.93,10.87647521]
[1760033741462,0.69,219.0,218.93,10.87647521]
[1760033741667,5.25635306,219.0,218.95,10.87647521]
[1760033741856,0.69,218.99,218.95,10.87647521]
[1760033743573,4.56581418,219.02,218.95,10.87647521]
[1760033743780,5.25581418,219.02,218.96,10.87647521]
[1760033745766,16.67954617,219.03,218.96,11.27647521]
[1760033746080,0.7,219.02,218.96,10.87647521]
[1760033747388,0.7,219.02,218.96,4.56698254]
[1760033747594,0.2,219.07,219.02,20.8]
[1760033747773,0.2,219.07,219.06,31.67647521]
[1760033747976,0.2,219.07,219.06,36.24143458]
[1760033748281,0.2,219.07,219.06,36.64143458]
[1760033752089,0.2,219.16,219.06,36.64143458]
[1760033752090,0.2,219.16,219.11,4.56391766]
[1760033752467,0.2,219.16,219.11,4.76391766]
[1760033752662,0.2,219.16,219.15,10.87647521]
[1760033752868,0.2,219.16,219.15,31.67647521]
[1760033753097,0.2,219.16,219.15,31.87647521]
[1760033753602,0.2,219.16,219.15,31.67647521]
[1760033753903,0.2,219.16,219.15,31.87647521]
[1760033754302,0.2,219.16,219.15,36.43955985]
[1760033755266,0.2,219.18,219.16,10.87647521]
[1760033755582,0.2,219.2,219.19,31.67647521]
[1760033756597,0.2,219.2,219.19,36.23872713]
[1760033756962,0.2,219.25,219.2,10.87647521]
[1760033757376,0.7,219.24,219.2,10.87647521]
[1760033757590,0.2,219.25,219.2,10.87647521]
[1760033757883,0.7,219.24,219.2,10.87647521]
[1760033758479,0.7,219.24,219.22,10.87647521]
[1760033758863,0.7,219.24,219.2,36.23851621]
[1760033759181,0.7,219.23,219.2,31.67647521]
[1760033759589,0.2,219.25,219.2,31.87647521]
[1760033759887,0.2,219.25,219.2,36.23845032]
[1760033760074,0.2,219.25,219.2,36.43845032]
[1760033760600,0.2,219.25,219.21,0.2]
[1760033760899,0.2,219.25,219.2,47.6435598]
[1760033761099,0.2,219.25,219.2,47.8435598]
[1760033761911,0.2,219.25,219.21,0.2]
[1760033762195,0.2,219.25,219.2,75.69218478]
[1760033762393,0.2,219.25,219.2,75.89218478]
[1760033762692,0.2,219.25,219.2,75.69218478]
[1760033762877,0.2,219.25,219.21,0.2]
[1760033763602,0.2,219.25,219.2,75.69218478]